[Event "Championnat d'Europe de Blitz"]
[Date "2024.12.09"]
[White "Trushko, Andrii"]
[Black "Fressinet, Laurent"]
[WhiteElo "2143"]
[BlackElo "2588"]
[Round "8.5"]
[Result "0-1"]
[TimeControl "180+2"]

1. d4 {[%clk 00:03:03]} Nf6 {[%emt 00:00:01] [%clk 00:03:03]} 2. Bg5 {[%emt
00:00:01] [%clk 00:03:04]} d5 {[%emt 00:00:02] [%clk 00:03:03]} 3. e3 {[%clk
00:03:05]} c5 {[%emt 00:00:04] [%clk 00:03:01]} 4. c3 {[%emt 00:00:02] [%clk
00:03:05]} Nc6 {[%emt 00:00:13] [%clk 00:02:51]} 5. Nd2 {[%clk 00:03:06]} cxd4
{[%emt 00:00:03] [%clk 00:02:49]} 6. exd4 {[%emt 00:00:06] [%clk 00:03:02]} Bf5
{[%emt 00:00:05] [%clk 00:02:46]} 7. Ngf3 {[%emt 00:00:05] [%clk 00:02:59]} e6
{[%emt 00:00:02] [%clk 00:02:47]} 8. Be2 {[%emt 00:00:06] [%clk 00:02:55]} Be7
{[%emt 00:00:05] [%clk 00:02:44]} 9. h3 {[%emt 00:00:02] [%clk 00:02:55]} h6
{[%emt 00:00:02] [%clk 00:02:43]} 10. Bxf6 {[%emt 00:00:06] [%clk 00:02:51]}
Bxf6 {[%emt 00:00:02] [%clk 00:02:44]} 11. a4 {[%emt 00:00:07] [%clk 00:02:46]}
O-O {[%emt 00:00:07] [%clk 00:02:39]} 12. O-O {[%emt 00:00:01] [%clk 00:02:47]}
Qc7 {[%emt 00:00:02] [%clk 00:02:39]} 13. Re1 {[%emt 00:00:04] [%clk 00:02:45]}
Rad8 {[%emt 00:00:07] [%clk 00:02:33]} 14. Nf1 {[%emt 00:00:03] [%clk 00:02:44]}
Be4 {[%emt 00:00:11] [%clk 00:02:24]} 15. Bd3 {[%emt 00:00:06] [%clk 00:02:41]}
Bxf3 {[%emt 00:00:16] [%clk 00:02:10]} 16. Qxf3 {[%emt 00:00:01] [%clk
00:02:41]} Qe7 {[%emt 00:00:07] [%clk 00:02:04]} 17. a5 {[%emt 00:00:10] [%clk
00:02:35]} a6 {[%emt 00:00:07] [%clk 00:01:59]} 18. Qe2 {[%emt 00:00:33] [%clk
00:02:03]} g6 {[%emt 00:00:08] [%clk 00:01:54]} 19. Nd2 {[%emt 00:00:01] [%clk
00:02:03]} Qc7 {[%emt 00:00:06] [%clk 00:01:50]} 20. Nb3 {[%emt 00:00:06] [%clk
00:02:00]} e5 {[%emt 00:00:03] [%clk 00:01:49]} 21. dxe5 {[%emt 00:00:03] [%clk
00:01:58]} Nxe5 {[%emt 00:00:11] [%clk 00:01:40]} 22. Nd4 {[%emt 00:00:06] [%clk
00:01:55]} Rfe8 {[%emt 00:00:05] [%clk 00:01:37]} 23. Qd2 {[%emt 00:00:03] [%clk
00:01:53]} Bg7 {[%emt 00:00:11] [%clk 00:01:29]} 24. Bf1 {[%emt 00:00:02] [%clk
00:01:53]} Nd7 {[%emt 00:00:08] [%clk 00:01:22]} 25. Rxe8+ {[%emt 00:00:13]
[%clk 00:01:43]} Rxe8 {[%emt 00:00:01] [%clk 00:01:24]} 26. Nf3 {[%clk
00:01:43]} Nf6 {[%emt 00:00:05] [%clk 00:01:20]} 27. Qd3 {[%emt 00:00:03] [%clk
00:01:42]} Qc5 {[%emt 00:00:05] [%clk 00:01:18]} 28. Qd4 {[%emt 00:00:18] [%clk
00:01:26]} Qd6 {[%emt 00:00:09] [%clk 00:01:10]} 29. Rd1 {[%emt 00:00:04] [%clk
00:01:25]} Qc7 {[%emt 00:00:05] [%clk 00:01:07]} 30. Qb4 {[%emt 00:00:04] [%clk
00:01:23]} Bf8 {[%emt 00:00:14] [%clk 00:00:55]} 31. Qa4 {[%emt 00:00:10] [%clk
00:01:15]} Re4 {[%emt 00:00:07] [%clk 00:00:49]} 32. Qb3 {[%emt 00:00:06] [%clk
00:01:12]} Bc5 {[%emt 00:00:09] [%clk 00:00:42]} 33. Nd4 {[%emt 00:00:22] [%clk
00:00:51]} Re7 {[%emt 00:00:02] [%clk 00:00:43]} 34. Qa2 {[%emt 00:00:01] [%clk
00:00:52]} Kg7 {[%emt 00:00:03] [%clk 00:00:42]} 35. Qa4 {[%emt 00:00:02] [%clk
00:00:52]} Ne4 {[%emt 00:00:07] [%clk 00:00:37]} 36. Rd3 {[%emt 00:00:16] [%clk
00:00:37]} Bd6 {[%emt 00:00:06] [%clk 00:00:33]} 37. g3 {[%emt 00:00:07] [%clk
00:00:32]} Nc5 {[%emt 00:00:01] [%clk 00:00:34]} 38. Qc2 {[%emt 00:00:01] [%clk
00:00:33]} Nxd3 {[%emt 00:00:02] [%clk 00:00:35]} 39. Qxd3 {[%emt 00:00:01]
[%clk 00:00:34]} Bc5 {[%emt 00:00:08] [%clk 00:00:29]} 40. Nb3 {[%emt 00:00:04]
[%clk 00:00:31]} Ba7 {[%emt 00:00:04] [%clk 00:00:27]} 41. Kg2 {[%emt 00:00:03]
[%clk 00:00:31]} Qe5 {[%emt 00:00:01] [%clk 00:00:28]} 42. Qf3 {[%emt 00:00:17]
[%clk 00:00:16]} Re6 {[%emt 00:00:04] [%clk 00:00:26]} 43. Qd3 {[%emt 00:00:05]
[%clk 00:00:12]} Qe4+ {[%emt 00:00:12] [%clk 00:00:17]} 44. Qxe4 {[%emt
00:00:02] [%clk 00:00:11]} dxe4 {[%emt 00:00:01] [%clk 00:00:18]} 45. Bc4 {[%emt
00:00:02] [%clk 00:00:11]} Rf6 {[%emt 00:00:01] [%clk 00:00:18]} 46. Bd5 {[%emt
00:00:05] [%clk 00:00:09]} Rxf2+ {[%emt 00:00:02] [%clk 00:00:18]} 47. Kh1
{[%clk 00:00:11]} Rxb2 {[%emt 00:00:02] [%clk 00:00:18]} 0-1

[Site "Europe Echecs"]

[Event "Championnat d'Europe de Blitz"]
[Date "2024.12.09"]
[White "Peyrer, Konstantin"]
[Black "Sarana, Alexey"]
[WhiteElo "2440"]
[BlackElo "2674"]
[Round "8.6"]
[Result "0-1"]
[TimeControl "180+2"]

1. d4 {[%emt 00:00:01] [%clk 00:03:03]} Nf6 {[%clk 00:03:03]} 2. c4 {[%emt
00:00:01] [%clk 00:03:04]} e6 {[%clk 00:03:05]} 3. Nf3 {[%emt 00:00:01] [%clk
00:03:05]} d5 {[%emt 00:00:01] [%clk 00:03:06]} 4. g3 {[%emt 00:00:04] [%clk
00:03:03]} Be7 {[%emt 00:00:02] [%clk 00:03:06]} 5. Bg2 {[%clk 00:03:04]} O-O
{[%emt 00:00:02] [%clk 00:03:07]} 6. O-O {[%emt 00:00:01] [%clk 00:03:05]} dxc4
{[%clk 00:03:08]} 7. Qc2 {[%emt 00:00:06] [%clk 00:03:01]} a6 {[%clk 00:03:09]}
8. a4 {[%clk 00:03:02]} b6 {[%emt 00:00:01] [%clk 00:03:11]} 9. Ne5 {[%emt
00:00:09] [%clk 00:02:54]} Ra7 {[%emt 00:00:02] [%clk 00:03:12]} 10. Qxc4 {[%emt
00:00:03] [%clk 00:02:52]} Bb7 {[%emt 00:00:01] [%clk 00:03:13]} 11. Bxb7 {[%emt
00:00:02] [%clk 00:02:52]} Rxb7 {[%clk 00:03:14]} 12. Nc3 {[%emt 00:00:01] [%clk
00:02:52]} c5 {[%emt 00:00:02] [%clk 00:03:15]} 13. Rd1 {[%emt 00:00:02] [%clk
00:02:52]} cxd4 {[%emt 00:00:03] [%clk 00:03:15]} 14. Rxd4 {[%emt 00:00:02]
[%clk 00:02:52]} Qc8 {[%emt 00:00:01] [%clk 00:03:15]} 15. Be3 {[%emt 00:00:12]
[%clk 00:02:41]} Bc5 {[%emt 00:00:59] [%clk 00:02:19]} 16. Rd3 {[%emt 00:00:01]
[%clk 00:02:42]} Bxe3 {[%emt 00:00:07] [%clk 00:02:14]} 17. Rxe3 {[%emt
00:00:01] [%clk 00:02:43]} Nbd7 {[%emt 00:00:01] [%clk 00:02:14]} 18. Qxc8
{[%emt 00:00:11] [%clk 00:02:34]} Rxc8 {[%emt 00:00:02] [%clk 00:02:15]} 19. Rd1
{[%emt 00:00:05] [%clk 00:02:30]} Nxe5 {[%emt 00:00:16] [%clk 00:02:02]} 20.
Rxe5 {[%clk 00:02:31]} Kf8 {[%clk 00:02:03]} 21. Kg2 {[%emt 00:00:38] [%clk
00:01:55]} Ke7 {[%emt 00:00:01] [%clk 00:02:04]} 22. Kf3 {[%emt 00:00:10] [%clk
00:01:46]} Rc4 {[%emt 00:00:02] [%clk 00:02:05]} 23. h3 {[%emt 00:00:09] [%clk
00:01:39]} Rb4 {[%emt 00:00:02] [%clk 00:02:06]} 24. Rd2 {[%emt 00:00:06] [%clk
00:01:34]} Rc7 {[%emt 00:00:06] [%clk 00:02:02]} 25. g4 {[%emt 00:00:04] [%clk
00:01:31]} h6 {[%clk 00:02:03]} 26. Re3 {[%emt 00:00:04] [%clk 00:01:30]} g5
{[%emt 00:00:11] [%clk 00:01:54]} 27. Red3 {[%emt 00:00:20] [%clk 00:01:12]} h5
{[%emt 00:00:01] [%clk 00:01:54]} 28. gxh5 {[%emt 00:00:01] [%clk 00:01:13]}
Nxh5 {[%emt 00:00:02] [%clk 00:01:54]} 29. e3 {[%emt 00:00:04] [%clk 00:01:11]}
f5 {[%emt 00:00:19] [%clk 00:01:37]} 30. Rd4 {[%emt 00:00:05] [%clk 00:01:08]}
Rb3 {[%emt 00:00:04] [%clk 00:01:36]} 31. R4d3 {[%emt 00:00:09] [%clk 00:01:02]}
Kf7 {[%emt 00:00:28] [%clk 00:01:09]} 32. Rd7+ {[%emt 00:00:20] [%clk 00:00:43]}
Rxd7 {[%emt 00:00:01] [%clk 00:01:11]} 33. Rxd7+ {[%clk 00:00:44]} Kf6 {[%clk
00:01:12]} 34. Ra7 {[%emt 00:00:07] [%clk 00:00:39]} a5 {[%emt 00:00:06] [%clk
00:01:08]} 35. Nb5 {[%emt 00:00:05] [%clk 00:00:36]} Rxb2 {[%emt 00:00:15] [%clk
00:00:55]} 36. Rb7 {[%emt 00:00:01] [%clk 00:00:36]} Rb4 {[%emt 00:00:07] [%clk
00:00:50]} 37. Rxb6 {[%emt 00:00:11] [%clk 00:00:27]} Ng7 {[%emt 00:00:01] [%clk
00:00:51]} 38. Ra6 {[%emt 00:00:10] [%clk 00:00:19]} Rxa4 {[%emt 00:00:01] [%clk
00:00:52]} 39. Nd4 {[%emt 00:00:03] [%clk 00:00:19]} Ra2 {[%emt 00:00:06] [%clk
00:00:49]} 40. Nb3 {[%emt 00:00:08] [%clk 00:00:12]} a4 {[%emt 00:00:02] [%clk
00:00:49]} 41. Nc5 {[%clk 00:00:13]} a3 {[%emt 00:00:01] [%clk 00:00:50]} 42.
Nd7+ {[%emt 00:00:03] [%clk 00:00:11]} Ke7 {[%emt 00:00:05] [%clk 00:00:48]} 43.
Ne5 {[%emt 00:00:02] [%clk 00:00:11]} Ra1 {[%emt 00:00:11] [%clk 00:00:39]} 44.
Ra7+ {[%clk 00:00:12]} Kf6 {[%emt 00:00:01] [%clk 00:00:40]} 45. Nd7+ {[%emt
00:00:01] [%clk 00:00:12]} Kg6 {[%clk 00:00:42]} 46. Ne5+ {[%emt 00:00:02] [%clk
00:00:13]} Kh6 {[%emt 00:00:02] [%clk 00:00:41]} 47. Nf7+ {[%emt 00:00:05] [%clk
00:00:10]} Kh7 {[%emt 00:00:05] [%clk 00:00:38]} 48. Nxg5+ {[%emt 00:00:04]
[%clk 00:00:08]} Kg6 {[%emt 00:00:01] [%clk 00:00:40]} 49. h4 {[%emt 00:00:01]
[%clk 00:00:09]} a2 {[%clk 00:00:40]} 50. Ra6 {[%emt 00:00:04] [%clk 00:00:07]}
Kh5 {[%emt 00:00:02] [%clk 00:00:40]} 51. Nf7 {[%emt 00:00:03] [%clk 00:00:06]}
Kxh4 {[%emt 00:00:10] [%clk 00:00:31]} 52. Ne5 {[%emt 00:00:01] [%clk 00:00:07]}
Nh5 {[%emt 00:00:07] [%clk 00:00:27]} 53. Ra4+ {[%emt 00:00:05] [%clk 00:00:04]}
Kg5 {[%clk 00:00:28]} 54. Kg2 {[%emt 00:00:01] [%clk 00:00:05]} Nf6 {[%emt
00:00:02] [%clk 00:00:28]} 55. Nf3+ {[%emt 00:00:01] [%clk 00:00:06]} Kg6 {[%emt
00:00:02] [%clk 00:00:28]} 56. Nd4 {[%emt 00:00:01] [%clk 00:00:08]} Nd5 {[%emt
00:00:03] [%clk 00:00:27]} 57. Ra6 {[%emt 00:00:02] [%clk 00:00:07]} Nb4 {[%emt
00:00:05] [%clk 00:00:22]} 58. Rxe6+ {[%emt 00:00:04] [%clk 00:00:07]} Kf7
{[%clk 00:00:23]} 59. Re5 {[%emt 00:00:06] [%clk 00:00:04]} Rg1+ {[%emt
00:00:03] [%clk 00:00:22]} 60. Kxg1 {[%emt 00:00:01] [%clk 00:00:04]} a1=Q+
{[%emt 00:00:03] [%clk 00:00:22]} 61. Kg2 {[%clk 00:00:05]} Nd3 {[%emt 00:00:03]
[%clk 00:00:21]} 62. Rxf5+ {[%clk 00:00:07]} Kg6 {[%clk 00:00:22]} 63. Rf8
{[%emt 00:00:04] [%clk 00:00:04]} Qa7 {[%emt 00:00:06] [%clk 00:00:19]} 64. Nf3
{[%emt 00:00:03] [%clk 00:00:03]} Qb7 {[%clk 00:00:19]} 65. Rg8+ {[%emt
00:00:02] [%clk 00:00:04]} Kh7 {[%emt 00:00:01] [%clk 00:00:19]} 66. Rf8 {[%emt
00:00:04] [%clk 00:00:03]} Qg7+ {[%clk 00:00:20]} 0-1

[Site "Europe Echecs"]

[Event "Championnat d'Europe de Blitz"]
[Date "2024.12.09"]
[White "Deac, Bogdan-Daniel"]
[Black "Koelle, Tobias"]
[WhiteElo "2696"]
[BlackElo "2437"]
[Round "8.7"]
[Result "1/2-1/2"]
[TimeControl "180+2"]

1. Nf3 {[%emt 00:00:01] [%clk 00:03:02]} d5 {[%clk 00:03:03]} 2. d4 {[%emt
00:00:02] [%clk 00:03:02]} Nf6 {[%emt 00:00:01] [%clk 00:03:04]} 3. Bf4 {[%clk
00:03:03]} c5 {[%clk 00:03:05]} 4. e3 {[%emt 00:00:01] [%clk 00:03:04]} Nc6
{[%clk 00:03:06]} 5. c3 {[%emt 00:00:02] [%clk 00:03:05]} Qb6 {[%emt 00:00:07]
[%clk 00:03:01]} 6. Qc2 {[%clk 00:03:06]} g6 {[%emt 00:00:14] [%clk 00:02:50]}
7. Nbd2 {[%emt 00:00:03] [%clk 00:03:04]} Bf5 {[%emt 00:00:02] [%clk 00:02:50]}
8. dxc5 {[%emt 00:00:03] [%clk 00:03:04]} Qxc5 {[%emt 00:00:02] [%clk 00:02:50]}
9. Qb3 {[%emt 00:00:04] [%clk 00:03:02]} Qb6 {[%emt 00:00:19] [%clk 00:02:33]}
10. Qxb6 {[%emt 00:01:03] [%clk 00:02:00]} axb6 {[%emt 00:00:01] [%clk
00:02:34]} 11. Nd4 {[%emt 00:00:02] [%clk 00:02:01]} Bd7 {[%emt 00:00:17] [%clk
00:02:19]} 12. Bc7 {[%emt 00:00:32] [%clk 00:01:31]} Nxd4 {[%emt 00:00:08] [%clk
00:02:13]} 13. exd4 {[%emt 00:00:01] [%clk 00:01:31]} b5 {[%emt 00:00:02] [%clk
00:02:14]} 14. Be5 {[%emt 00:00:01] [%clk 00:01:31]} Bg7 {[%emt 00:00:03] [%clk
00:02:13]} 15. Nb3 {[%emt 00:00:02] [%clk 00:01:31]} O-O {[%emt 00:00:05] [%clk
00:02:11]} 16. Nc5 {[%emt 00:00:02] [%clk 00:01:30]} Bc6 {[%clk 00:02:12]} 17.
Nd3 {[%emt 00:00:02] [%clk 00:01:30]} Nd7 {[%emt 00:00:08] [%clk 00:02:07]} 18.
Bxg7 {[%emt 00:00:02] [%clk 00:01:30]} Kxg7 {[%emt 00:00:01] [%clk 00:02:07]}
19. Nb4 {[%emt 00:00:03] [%clk 00:01:29]} Rfe8 {[%emt 00:00:05] [%clk 00:02:05]}
20. O-O-O {[%emt 00:00:08] [%clk 00:01:23]} Nb8 {[%emt 00:00:08] [%clk
00:01:59]} 21. h4 {[%emt 00:00:14] [%clk 00:01:10]} Na6 {[%emt 00:00:01] [%clk
00:02:00]} 22. Nc2 {[%emt 00:00:02] [%clk 00:01:11]} h6 {[%emt 00:00:03] [%clk
00:01:58]} 23. a3 {[%emt 00:00:07] [%clk 00:01:06]} Nc7 {[%emt 00:00:04] [%clk
00:01:56]} 24. Bd3 {[%emt 00:00:05] [%clk 00:01:03]} f6 {[%emt 00:00:22] [%clk
00:01:37]} 25. f4 {[%emt 00:00:27] [%clk 00:00:38]} Bd7 {[%emt 00:00:11] [%clk
00:01:28]} 26. Ne3 {[%emt 00:00:03] [%clk 00:00:36]} h5 {[%emt 00:00:11] [%clk
00:01:19]} 27. Rde1 {[%emt 00:00:21] [%clk 00:00:17]} Rac8 {[%emt 00:00:30]
[%clk 00:00:51]} 28. Kd2 {[%emt 00:00:04] [%clk 00:00:15]} Rcd8 {[%emt 00:00:03]
[%clk 00:00:50]} 29. Rhg1 {[%emt 00:00:07] [%clk 00:00:10]} f5 {[%emt 00:00:01]
[%clk 00:00:51]} 30. Nc2 {[%emt 00:00:02] [%clk 00:00:10]} e6 {[%emt 00:00:03]
[%clk 00:00:50]} 31. Nb4 {[%emt 00:00:05] [%clk 00:00:08]} Rf8 {[%emt 00:00:01]
[%clk 00:00:52]} 32. Be2 {[%emt 00:00:03] [%clk 00:00:06]} Ne8 {[%emt 00:00:01]
[%clk 00:00:53]} 33. Nd3 {[%emt 00:00:02] [%clk 00:00:06]} Nd6 {[%emt 00:00:04]
[%clk 00:00:50]} 34. Ne5 {[%emt 00:00:03] [%clk 00:00:06]} Bc6 {[%clk 00:00:52]}
35. Bd3 {[%emt 00:00:02] [%clk 00:00:06]} Kf6 {[%emt 00:00:02] [%clk 00:00:52]}
36. Ra1 {[%emt 00:00:03] [%clk 00:00:05]} Ra8 {[%emt 00:00:02] [%clk 00:00:51]}
37. Rge1 {[%emt 00:00:02] [%clk 00:00:06]} Rfd8 {[%emt 00:00:02] [%clk
00:00:51]} 38. Rad1 {[%emt 00:00:02] [%clk 00:00:06]} Ne4+ {[%emt 00:00:06]
[%clk 00:00:47]} 39. Kc1 {[%emt 00:00:01] [%clk 00:00:07]} Rdc8 {[%emt 00:00:03]
[%clk 00:00:45]} 40. Kb1 {[%emt 00:00:02] [%clk 00:00:07]} Ra5 {[%emt 00:00:03]
[%clk 00:00:44]} 41. Re3 {[%emt 00:00:01] [%clk 00:00:08]} Rca8 {[%clk
00:00:46]} 42. Kc1 {[%emt 00:00:02] [%clk 00:00:08]} Be8 {[%emt 00:00:06] [%clk
00:00:41]} 43. Rde1 {[%emt 00:00:02] [%clk 00:00:08]} Rc8 {[%clk 00:00:42]} 44.
Bc2 {[%emt 00:00:02] [%clk 00:00:09]} Ra6 {[%emt 00:00:02] [%clk 00:00:41]} 45.
Nd3 {[%emt 00:00:02] [%clk 00:00:09]} Bd7 {[%emt 00:00:04] [%clk 00:00:40]} 46.
Nb4 {[%emt 00:00:02] [%clk 00:00:10]} Raa8 {[%emt 00:00:01] [%clk 00:00:40]} 47.
Kd1 {[%emt 00:00:01] [%clk 00:00:10]} Nd6 {[%emt 00:00:01] [%clk 00:00:42]} 48.
Bd3 {[%emt 00:00:02] [%clk 00:00:10]} Ne4 {[%emt 00:00:02] [%clk 00:00:41]} 49.
Ke2 {[%emt 00:00:02] [%clk 00:00:11]} Be8 {[%emt 00:00:01] [%clk 00:00:42]} 50.
Kf1 {[%emt 00:00:02] [%clk 00:00:11]} Bd7 {[%clk 00:00:43]} 51. Kg1 {[%emt
00:00:02] [%clk 00:00:12]} Nd6 {[%emt 00:00:01] [%clk 00:00:44]} 52. R3e2 {[%emt
00:00:03] [%clk 00:00:10]} Ne4 {[%emt 00:00:01] [%clk 00:00:46]} 53. Bc2 {[%emt
00:00:02] [%clk 00:00:10]} Nd6 {[%emt 00:00:02] [%clk 00:00:46]} 54. Nd3 {[%emt
00:00:01] [%clk 00:00:11]} Ne4 {[%emt 00:00:01] [%clk 00:00:46]} 55. Ne5 {[%emt
00:00:02] [%clk 00:00:11]} Be8 {[%clk 00:00:48]} 56. Bd3 {[%emt 00:00:02] [%clk
00:00:11]} Ra5 {[%emt 00:00:03] [%clk 00:00:47]} 57. Rd1 {[%emt 00:00:03] [%clk
00:00:11]} Ra7 {[%emt 00:00:01] [%clk 00:00:48]} 58. Bxe4 {[%emt 00:00:02] [%clk
00:00:10]} fxe4 {[%emt 00:00:03] [%clk 00:00:47]} 59. Re3 {[%emt 00:00:02] [%clk
00:00:10]} b4 {[%emt 00:00:03] [%clk 00:00:47]} 60. axb4 {[%emt 00:00:04] [%clk
00:00:08]} Ra2 {[%clk 00:00:48]} 61. Rb1 {[%emt 00:00:02] [%clk 00:00:08]} Rca8
{[%clk 00:00:49]} 62. Kf2 {[%emt 00:00:02] [%clk 00:00:09]} Ra1 {[%clk
00:00:51]} 63. Ree1 {[%clk 00:00:09]} R1a2 {[%emt 00:00:04] [%clk 00:00:50]} 64.
Ke3 {[%clk 00:00:10]} Kf5 {[%emt 00:00:03] [%clk 00:00:49]} 65. g3 {[%emt
00:00:04] [%clk 00:00:08]} Ba4 {[%emt 00:00:04] [%clk 00:00:48]} 66. Kd2 {[%emt
00:00:02] [%clk 00:00:08]} Bb3 {[%clk 00:00:50]} 67. Nd7 {[%emt 00:00:03] [%clk
00:00:07]} Kg4 {[%emt 00:00:20] [%clk 00:00:32]} 68. Ne5+ {[%emt 00:00:02] [%clk
00:00:07]} Kf5 {[%clk 00:00:33]} 69. Re3 {[%emt 00:00:02] [%clk 00:00:06]} Ra1
{[%emt 00:00:03] [%clk 00:00:33]} 70. Ree1 {[%emt 00:00:01] [%clk 00:00:07]}
R1a2 {[%emt 00:00:01] [%clk 00:00:34]} 71. Rg1 {[%emt 00:00:01] [%clk 00:00:07]}
Ba4 {[%emt 00:00:07] [%clk 00:00:29]} 72. g4+ {[%emt 00:00:03] [%clk 00:00:07]}
hxg4 {[%emt 00:00:02] [%clk 00:00:29]} 73. Rxg4 {[%clk 00:00:08]} Be8 {[%emt
00:00:04] [%clk 00:00:27]} 74. Rg5+ {[%emt 00:00:02]} Kf6 {[%emt 00:00:01]} 75.
Ng4+ {[%emt 00:00:01] [%clk 00:00:08]} Ke7 {[%emt 00:00:01] [%clk 00:00:29]} 76.
Ne5 {[%emt 00:00:05] [%clk 00:00:06]} Kf6 {[%clk 00:00:31]} 77. Rg3 {[%emt
00:00:02] [%clk 00:00:06]} Ra1 {[%emt 00:00:01] [%clk 00:00:32]} 78. Rgg1 {[%emt
00:00:01] [%clk 00:00:06]} R1a2 {[%emt 00:00:01] [%clk 00:00:33]} 79. Ng4+
{[%emt 00:00:02] [%clk 00:00:06]} Kf5 {[%emt 00:00:02] [%clk 00:00:34]} 80. Ne3+
{[%emt 00:00:01] [%clk 00:00:06]} Kf6 {[%clk 00:00:35]} 81. Rg2 {[%emt 00:00:02]
[%clk 00:00:06]} Ra1 {[%emt 00:00:01] [%clk 00:00:36]} 82. Rgg1 {[%emt 00:00:02]
[%clk 00:00:06]} R1a2 {[%clk 00:00:38]} 83. Ng4+ {[%emt 00:00:02] [%clk
00:00:06]} Kf5 {[%clk 00:00:39]} 84. Ne5 {[%emt 00:00:02] [%clk 00:00:06]} Kf6
{[%clk 00:00:41]} 85. Ke3 {[%emt 00:00:02] [%clk 00:00:06]} R8a7 {[%emt
00:00:03] [%clk 00:00:40]} 86. Rgf1 {[%emt 00:00:02] [%clk 00:00:05]} Bb5 {[%emt
00:00:02] [%clk 00:00:40]} 87. Rh1 {[%emt 00:00:02] [%clk 00:00:06]} Be8 {[%emt
00:00:01] [%clk 00:00:41]} 88. Rhg1 {[%emt 00:00:02] [%clk 00:00:06]} Ra8 {[%emt
00:00:01] [%clk 00:00:42]} 89. Rge1 {[%emt 00:00:01] [%clk 00:00:06]} R8a7
{[%clk 00:00:44]} 90. Rg1 {[%emt 00:00:03] [%clk 00:00:06]} Ra8 {[%emt
00:00:01]} 91. Rg2 {[%emt 00:00:01] [%clk 00:00:06]} Ra1 {[%emt 00:00:01] [%clk
00:00:47]} 92. Rbg1 {[%emt 00:00:01] [%clk 00:00:06]} R8a2 {[%emt 00:00:06]
[%clk 00:00:43]} 93. Ng4+ {[%emt 00:00:04] [%clk 00:00:05]} Ke7 {[%emt 00:00:01]
[%clk 00:00:44]} 94. Rxa1 {[%emt 00:00:01] [%clk 00:00:05]} Rxa1 {[%clk
00:00:46]} 95. Ne5 {[%emt 00:00:02] [%clk 00:00:05]} Kf6 {[%clk 00:00:48]} 96.
Ng4+ {[%emt 00:00:03] [%clk 00:00:05]} Kf5 {[%clk 00:00:49]} 97. Nh6+ {[%emt
00:00:02] [%clk 00:00:05]} Kf6 {[%emt 00:00:01] [%clk 00:00:51]} 98. Ng4+ {[%clk
00:00:06]} Kf5 {[%clk 00:00:52]} 99. Nh6+ {[%emt 00:00:02] [%clk 00:00:06]} Kf6
{[%clk 00:00:54]} 100. Ng4+ {[%emt 00:00:03]} Kf5 101. Ne5 {[%emt 00:00:01]
[%clk 00:00:06]} Re1+ {[%emt 00:00:03] [%clk 00:00:54]} 102. Kf2 {[%emt
00:00:01] [%clk 00:00:07]} Rh1 {[%emt 00:00:06] [%clk 00:00:51]} 103. Kg3 {[%emt
00:00:02] [%clk 00:00:06]} Rb1 {[%emt 00:00:01] [%clk 00:00:52]} 104. Kf2 {[%emt
00:00:03] [%clk 00:00:05]} 1/2-1/2

[Site "Europe Echecs"]